bitfinex-derivatives/quotes_ETHF0:USTF0_20241013
["timestamp","ask_amount","ask_price","bid_price","bid_amount"]
[1728790544315,4.0128,2458.9,2458.5,0.747]
[1728790544511,4.0128,2458.9,2458.5,1.15381]
[1728790546609,5.06723627,2458.9,2458.5,1.15381]
[1728790547218,6.64889068,2458.9,2458.5,1.15381]
[1728790547418,5.06723627,2458.9,2458.5,1.15381]
[1728790547717,5.47397627,2458.9,2458.5,1.15381]
[1728790547917,1.05443627,2458.8,2458.5,1.15381]
[1728790548920,1.05443627,2458.8,2458.5,0.747]
[1728790550217,1.05443627,2458.7,2458.5,0.747]
[1728790550414,1.05443627,2458.7,2458.5,2.067]
[1728790552315,1.05443627,2458.6,2458.5,2.067]
[1728790552519,1.58165441,2458.7,2458.5,2.067]
[1728790552520,1.05443627,2458.7,2458.5,2.067]
[1728790552722,1.05443627,2458.6,2458.5,2.067]
[1728790554516,1.05443627,2458.7,2458.5,2.067]
[1728790557122,1.05443627,2458.7,2458.5,0.747]
[1728790557325,1.84163627,2458.6,2458.5,0.747]
[1728790557527,0.7872,2458.6,2458.5,0.747]
[1728790557718,1.84163627,2458.6,2458.5,0.747]
[1728790558033,1.8444232,2458.6,2458.5,0.747]
[1728790558239,1.84447673,2458.6,2458.5,0.747]
[1728790558421,2.36885441,2458.6,2458.5,0.747]
[1728790558924,1.05730323,2458.6,2458.5,2.067]
[1728790562222,1.05730323,2458.6,2458.5,3.13017798]
[1728790563222,1.05730323,2458.6,2458.5,3.43149069]
[1728790564021,1.05730323,2458.6,2458.5,3.43149774]
[1728790567732,1.05730323,2458.6,2458.5,3.13017798]
[1728790568031,1.05730323,2458.6,2458.5,3.43153587]
[1728790568734,1.58165441,2458.6,2458.5,2.36835789]
[1728790571629,1.58165441,2458.6,2458.5,2.36845067]
[1728790571929,1.58165441,2458.6,2458.5,0.747]
[1728790572134,3.42887255,2458.6,2458.5,0.747]
[1728790572534,1.32,2458.6,2458.5,0.747]
[1728790572737,3.43610029,2458.6,2458.5,0.747]
[1728790574640,3.43611414,2458.6,2458.5,0.747]
[1728790575536,2.11611414,2458.6,2458.5,0.747]
[1728790575843,2.11611414,2458.6,2458.5,2.067]
[1728790576132,2.11611414,2458.6,2458.5,2.8608]
[1728790576539,2.11611414,2458.7,2458.5,3.16235676]
[1728790576738,1.5872386,2458.6,2458.5,3.92397798]
[1728790576939,1.5872386,2458.6,2458.5,4.22553243]
[1728790579140,1.5872386,2458.6,2458.5,2.90553243]
[1728790579339,1.5872386,2458.6,2458.5,4.56271007]
[1728790579539,1.5872386,2458.6,2458.5,4.08013448]
[1728790579737,1.5872386,2458.6,2458.5,4.56270403]
[1728790580137,1.5872386,2458.6,2458.5,2.90553243]
[1728790580833,2.3928386,2458.6,2458.5,2.90553243]
[1728790581232,2.3928386,2458.6,2458.5,4.08021419]
[1728790581433,2.3928386,2458.6,2458.5,4.56283682]
[1728790581835,2.3928386,2458.6,2458.5,2.90553243]
[1728790582242,2.3928386,2458.6,2458.5,2.90559644]
[1728790582540,3.7128386,2458.6,2458.5,2.90559644]
[1728790582735,2.1256,2458.6,2458.5,2.60397798]
[1728790582942,2.1256,2458.6,2458.5,1.84244392]
[1728790583132,4.24171414,2458.6,2458.5,1.84244392]
[1728790585543,4.24171414,2458.6,2458.5,2.9056219]
[1728790585845,4.24171414,2458.6,2458.5,2.1118219]
[1728790586544,4.24171414,2458.6,2458.5,2.1118416]
[1728790587941,1.58724956,2458.6,2458.5,4.02622794]
[1728790588240,1.58724956,2458.6,2458.5,6.15499058]
[1728790588435,1.58724956,2458.6,2458.5,6.02780492]
[1728790589841,1.58724956,2458.6,2458.5,6.15499012]
[1728790590244,1.58724956,2458.6,2458.5,6.15497356]
[1728790590435,1.58724956,2458.6,2458.5,6.02778836]
[1728790591048,1.58724956,2458.6,2458.5,6.02782884]
[1728790591746,1.58724956,2458.6,2458.5,6.15501374]
[1728790591953,6.64391414,2458.8,2458.5,4.45293306]
[1728790591954,2.11611414,2458.7,2458.5,4.45293306]
[1728790592141,2.11611414,2458.7,2458.6,0.30165364]
[1728790592452,2.11611414,2458.7,2458.6,1.11655364]
[1728790593847,2.11611414,2458.7,2458.6,0.8149]
[1728790596248,3.43611414,2458.7,2458.6,0.8149]
[1728790596552,2.47698,2458.7,2458.5,1.81460777]
[1728790596750,4.21945363,2458.6,2458.5,1.81460777]
[1728790596950,4.21945363,2458.6,2458.5,2.11626523]
[1728790598041,4.21945363,2458.6,2458.5,1.81460777]
[1728790598250,4.21945363,2458.6,2458.5,2.11626864]
[1728790598952,3.69035109,2458.6,2458.5,3.81835757]
[1728790599552,2.103,2458.6,2458.5,1.81464141]
[1728790600646,0.783,2458.6,2458.5,3.13464141]
[1728790600842,0.783,2458.6,2458.5,4.30958605]
[1728790602044,0.783,2458.6,2458.5,5.09394194]
[1728790602645,0.783,2458.6,2458.5,3.43630352]
[1728790602850,0.783,2458.6,2458.5,5.0939586]
[1728790603151,4.18665363,2458.7,2458.5,5.0939586]
[1728790603353,4.18665363,2458.7,2458.6,0.30166211]
[1728790603548,4.18665363,2458.7,2458.6,1.06786211]
[1728790603751,4.18665363,2458.7,2458.6,0.7662]
[1728790604949,4.18665363,2458.7,2458.6,1.06786548]
[1728790606049,4.18665363,2458.7,2458.6,2.3878651]
[1728790606451,2.86665363,2458.7,2458.6,2.3878651]
[1728790606651,2.86665363,2458.7,2458.6,3.45550651]
[1728790606852,5.08884912,2458.7,2458.6,2.3878651]
[1728790608857,5.08884912,2458.7,2458.6,2.0862]
[1728790609858,5.0890855,2458.7,2458.6,2.0862]
[1728790610951,6.4090855,2458.7,2458.6,2.0862]
[1728790611351,5.0890855,2458.7,2458.6,2.0862]
[1728790611755,6.4090855,2458.7,2458.6,2.0862]
[1728790612852,6.40881512,2458.7,2458.6,2.0862]
[1728790614052,4.18708585,2458.7,2458.6,3.15384141]
[1728790616961,4.18708585,2458.7,2458.6,3.45475436]
[1728790621869,4.18708585,2458.7,2458.6,2.13475436]
[1728790622065,6.40927758,2458.7,2458.6,1.06711295]
[1728790622869,6.40932264,2458.7,2458.6,1.06711295]
[1728790626971,6.40932264,2458.7,2458.6,1.06713666]
[1728790627472,6.40996461,2458.7,2458.6,1.06713666]
[1728790628773,6.40996461,2458.7,2458.6,0.7662]
[1728790628977,4.18851195,2458.7,2458.6,1.83384141]
[1728790630171,4.18851195,2458.7,2458.6,2.13478621]
[1728790630674,4.18851195,2458.7,2458.6,1.83384141]
[1728790630976,4.18851195,2458.7,2458.6,2.1347972]
[1728790631176,4.18851195,2458.7,2458.6,3.79161467]
[1728790631970,4.18851195,2458.7,2458.6,3.31005237]
[1728790632172,4.18851195,2458.7,2458.6,1.83384141]
[1728790633079,2.0702,2458.7,2458.6,1.83384141]
[1728790635081,4.18895197,2458.7,2458.6,2.13484712]
[1728790635385,4.18895197,2458.7,2458.6,3.3102152]
[1728790635581,4.18895197,2458.7,2458.6,2.13484712]
[1728790635879,4.18895197,2458.7,2458.6,3.3102156]
[1728790636083,4.18895197,2458.7,2458.6,2.13484712]
[1728790636276,4.18895197,2458.7,2458.6,3.31022062]
[1728790636473,4.18895197,2458.7,2458.6,2.13484712]
[1728790636677,4.18895197,2458.7,2458.6,3.31021892]
[1728790637172,6.41034543,2458.7,2458.6,1.06720571]
[1728790638383,6.41034543,2458.7,2458.6,1.06681848]
[1728790638980,6.41034543,2458.7,2458.6,1.54784961]
[1728790639278,4.34014543,2458.7,2458.6,2.86784961]
[1728790639485,2.63609069,2458.7,2458.6,2.99503194]
[1728790640380,1.70409165,2458.7,2458.6,2.99503194]
[1728790640778,1.70408775,2458.7,2458.6,2.99503194]
[1728790640972,4.34017844,2458.7,2458.6,2.99503194]
[1728790641177,2.63609069,2458.8,2458.6,2.99503194]
[1728790641378,2.63609069,2458.8,2458.7,2.42261848]
[1728790641778,3.02404174,2458.8,2458.7,1.10261848]
[1728790641981,6.23184174,2458.8,2458.7,1.10261848]
[1728790642181,6.23184174,2458.8,2458.7,0.802]
[1728790642376,6.23184174,2458.8,2458.7,1.10259848]
[1728790644085,4.5278,2458.8,2458.7,1.10259848]
[1728790645283,6.23144121,2458.8,2458.7,1.10259848]
[1728790645486,6.23143616,2458.8,2458.7,1.10259848]
[1728790645687,6.23144572,2458.8,2458.7,1.10259848]
[1728790645884,6.23143104,2458.8,2458.7,1.10259424]
[1728790646086,6.23143395,2458.8,2458.7,1.10259424]
[1728790646281,4.5278,2458.8,2458.7,1.10259523]
[1728790647087,4.5278,2458.8,2458.7,0.802]
[1728790649086,4.91146061,2458.8,2458.7,0.802]
[1728790649293,5.32610021,2458.8,2458.7,5.29881694]
[1728790649586,5.32610021,2458.8,2458.7,3.70404996]
[1728790649787,5.32610021,2458.8,2458.7,5.59942425]
[1728790650483,3.2078,2458.8,2458.7,5.59942425]
[1728790650683,3.2078,2458.8,2458.7,4.42411547]
[1728790650891,3.2078,2458.8,2458.7,5.59926081]
[1728790651287,3.2078,2458.8,2458.7,5.29869232]
[1728790651686,3.2078,2458.8,2458.7,3.70392534]
[1728790651892,3.2078,2458.8,2458.7,3.29714534]
[1728790652092,3.2078,2458.8,2458.7,4.36490487]
[1728790652894,3.2078,2458.8,2458.7,4.77162306]
[1728790653090,3.2078,2458.8,2458.7,4.77161929]
[1728790653493,3.2078,2458.8,2458.7,3.70392534]
[1728790653699,3.2078,2458.8,2458.7,3.29714534]
[1728790654093,3.2078,2458.8,2458.7,5.14612837]
[1728790654795,3.2078,2458.8,2458.7,3.49013632]
[1728790657195,3.2078,2458.8,2458.7,4.66496165]
[1728790657603,3.2078,2458.8,2458.7,3.49013632]
[1728790659314,3.2078,2458.8,2458.7,2.42250761]
[1728790660310,3.2078,2458.8,2458.7,2.82928761]
[1728790660609,3.2078,2458.8,2458.7,2.42250761]
[1728790660799,3.2078,2458.8,2458.7,2.122]
[1728790661006,3.2078,2458.8,2458.7,2.42245808]
[1728790662110,3.2078,2458.8,2458.7,2.122]
[1728790664713,2.11720208,2458.8,2458.7,2.122]
[1728790665108,2.6478557,2458.9,2458.7,2.122]
[1728790665807,2.6478557,2458.9,2458.7,2.52877]
[1728790666115,2.6478557,2458.9,2458.7,2.122]
[1728790666521,2.11722337,2458.8,2458.7,2.122]
[1728790667420,1.58786284,2458.8,2458.7,3.18962871]
[1728790667913,1.58786284,2458.8,2458.7,3.59640871]
[1728790668115,1.05861808,2458.8,2458.7,5.29820659]
[1728790668312,1.05861808,2458.8,2458.7,8.07102223]
[1728790668508,1.58786284,2459.1,2458.7,16.14025018]
[1728790668715,1.58786284,2459.1,2459.0,2.38712444]
[1728790668914,1.58786284,2459.1,2459.0,8.81591318]
[1728790669118,1.58786284,2459.2,2459.0,8.54360266]
[1728790669415,1.58786284,2459.2,2459.1,1.62030234]
[1728790669612,1.58746963,2459.2,2459.1,1.62030234]
[1728790670317,1.58746963,2459.2,2459.1,2.42660234]
[1728790671322,1.58746963,2459.2,2459.1,2.1263]
[1728790671818,1.58746963,2459.2,2459.1,2.921]
[1728790673318,2.40356963,2459.3,2459.1,2.921]
[1728790673520,2.40356963,2459.3,2459.2,1.32]
[1728790673718,0.8161,2459.3,2459.2,1.32]
[1728790674118,2.40206904,2459.3,2459.2,1.32]
[1728790676426,3.72206904,2459.3,2459.2,1.32]
[1728790678314,2.40206904,2459.3,2459.2,1.32]
[1728790681420,3.4639557,2459.3,2459.2,1.32]
[1728790681630,5.15516534,2459.3,2459.2,1.32]
[1728790682315,3.4639557,2459.3,2459.2,1.32]
[1728790682515,5.15513295,2459.3,2459.2,1.32]
[1728790683522,2.50727725,2459.3,2459.2,1.32]
[1728790683827,5.15513295,2459.3,2459.2,1.32]
[1728790684925,0.8161,2459.3,2459.2,1.32]
[1728790685322,2.50673742,2459.3,2459.2,1.32]
[1728790685529,0.8161,2459.3,2459.2,1.32]
[1728790685932,3.4639557,2459.3,2459.2,1.32]
[1728790686129,5.15443252,2459.3,2459.2,1.32]
[1728790687030,3.4639557,2459.3,2459.2,1.32]
[1728790687219,5.15442461,2459.3,2459.2,1.32]
[1728790687425,2.50656891,2459.3,2459.2,1.32]
[1728790687827,0.8161,2459.3,2459.2,1.32]
[1728790688222,5.15443028,2459.3,2459.2,1.32]
[1728790689433,2.40080645,2459.3,2459.2,1.32]
[1728790696643,0.8161,2459.3,2459.2,1.32]
[1728790697340,2.92955831,2459.3,2459.2,1.32]
[1728790697640,2.92957055,2459.3,2459.2,1.32]
[1728790698239,0.8161,2459.3,2459.2,1.32]
[1728790700234,2.11356557,2459.3,2459.2,1.72669]
[1728790700634,2.11356557,2459.3,2459.2,1.32]
[1728790701345,1.58537399,2459.3,2459.2,9.00089]
[1728790701538,1.58537399,2459.5,2459.2,8.5942]
[1728790701735,1.58537399,2459.5,2459.4,1.72666]
[1728790702145,1.58537399,2459.5,2459.4,5.79226]
[1728790702942,1.58537399,2459.6,2459.4,5.79224]
[1728790703140,1.58537399,2459.6,2459.5,2.8958]
[1728790703340,1.58537399,2459.6,2459.5,3.30244]
[1728790704538,2.35527399,2459.8,2459.5,3.30244]
[1728790704743,2.35527399,2459.8,2459.7,1.32]
[1728790705845,0.7699,2459.8,2459.7,1.32]
[1728790710246,0.7699,2459.8,2459.7,2.64]
[1728790710452,0.7699,2459.8,2459.7,1.32]
[1728790711650,2.88346557,2459.8,2459.7,1.32]
[1728790713756,0.7699,2459.8,2459.7,1.32]
[1728790713957,2.11356557,2459.9,2459.7,1.32]
[1728790714158,4.1659557,2460.0,2459.8,1.32]
[1728790714463,4.1659557,2460.0,2459.9,1.32]
[1728790714646,9.06306727,2460.0,2459.9,1.32]
[1728790715049,9.06307582,2460.0,2459.9,1.32]
[1728790716456,6.41522012,2460.0,2459.9,1.32]
[1728790716757,4.7259,2460.0,2459.9,1.32]
[1728790718458,0.7578,2460.0,2459.9,1.72658]
[1728790718652,2.86875543,2460.0,2459.9,1.72658]
[1728790718953,2.11095543,2460.0,2459.9,8.11838]
[1728790719156,2.11095543,2460.2,2459.9,7.7118]
[1728790719358,1.5832978,2460.1,2460.0,0.40656]
[1728790719654,0.7517,2460.3,2460.1,0.40654]
[1728790719852,0.7517,2460.3,2460.2,0.7891]
[1728790720858,0.7517,2460.3,2460.2,2.1091]
[1728790725471,3.61427,2460.6,2460.2,6.58042]
[1728790725655,0.8065,2460.5,2460.3,1.5663]
[1728790726260,0.8065,2460.5,2460.4,1.32]
[1728790726769,2.3897978,2460.5,2460.4,1.32]
[1728790731170,7.7737978,2460.5,2459.9,0.40657]
[1728790731370,0.40654,2460.2,2460.1,1.32]
[1728790731766,2.00034,2460.2,2460.1,1.32]
[1728790732871,1.5938,2460.2,2460.1,1.32]
[1728790740770,2.00033,2460.2,2460.1,1.32]
[1728790741372,1.5938,2460.2,2460.1,1.32]
[1728790747084,0.7756,2460.2,2460.1,1.32]
[1728790747676,0.7756,2460.2,2460.1,2.8691]
[1728790749776,2.3588978,2460.2,2460.1,2.8691]
[1728790749974,2.36000966,2460.2,2460.1,2.8691]
[1728790750375,0.7756,2460.2,2460.1,2.8691]
[1728790751076,2.36015645,2460.2,2460.1,2.8691]
[1728790751385,0.7756,2460.2,2460.1,2.8691]
[1728790751987,2.88655543,2460.2,2460.1,2.8691]
[1728790753076,0.7756,2460.2,2460.1,2.8691]
[1728790753486,2.88655543,2460.2,2460.1,1.32]
[1728790756793,0.7756,2460.2,2460.1,1.32]
[1728790756982,1.58523797,2460.2,2460.1,3.29044]
[1728790757784,1.58523797,2460.2,2460.1,2.8839]
[1728790760381,1.58523797,2460.3,2460.1,4.25086553]
[1728790760685,1.58523797,2460.3,2460.2,2.02664141]
[1728790761486,4.79303797,2460.4,2460.2,3.09349553]
[1728790761685,3.2078,2460.4,2460.3,2.0648]
[1728790761893,4.79386368,2460.4,2460.3,2.36491128]
[1728790763389,3.2078,2460.4,2460.3,2.36491128]
[1728790763590,3.2078,2460.4,2460.3,2.77142128]
[1728790763886,4.79413285,2460.4,2460.3,2.77142128]
[1728790764090,4.79413285,2460.4,2460.3,3.8382754]
[1728790764488,4.79413285,2460.4,2460.3,5.01645666]
[1728790764691,4.79413285,2460.4,2460.3,2.1117654]
[1728790764989,3.2078,2460.4,2460.3,3.54308635]
[1728790765186,3.2078,2460.4,2460.3,2.36491128]
[1728790765392,3.2078,2460.4,2460.3,2.0648]
[1728790765692,5.31875543,2460.4,2460.3,2.0648]
[1728790766092,5.31875543,2460.4,2460.3,1.32]
[1728790771496,9.38355543,2460.4,2460.1,2.63075412]
[1728790771704,1.58622173,2460.2,2460.1,2.63075412]
[1728790771900,2.6478557,2460.3,2460.1,3.18296186]
[1728790772098,2.6478557,2460.3,2460.2,1.61906186]
[1728790772298,4.33979995,2460.3,2460.2,1.61906954]
[1728790772705,4.33979995,2460.3,2460.2,1.32]
[1728790772903,4.33979995,2460.3,2460.2,1.61905629]
[1728790774107,4.33989843,2460.3,2460.2,1.61905629]
[1728790775002,4.33989843,2460.3,2460.2,1.32]
[1728790776203,1.69204273,2460.3,2460.2,1.32]
[1728790778909,2.1154721,2460.3,2460.2,1.32]
[1728790782019,2.1154721,2460.3,2460.2,1.61872032]
[1728790787119,2.64434013,2460.3,2460.2,1.61872032]
[1728790787413,4.33672686,2460.3,2460.2,1.61872032]
[1728790787914,4.33672686,2460.3,2460.2,1.32]
[1728790788213,4.33672686,2460.3,2460.2,1.61872354]
[1728790788417,4.33676462,2460.3,2460.2,1.32]
[1728790788913,2.64434013,2460.3,2460.2,1.32]
[1728790789111,2.64434013,2460.3,2460.2,1.72653]
[1728790789815,2.64434013,2460.3,2460.2,1.32]
[1728790790218,2.64434013,2460.3,2460.2,2.02524763]
[1728790790412,2.64434013,2460.3,2460.2,1.61871763]
[1728790791416,2.64434013,2460.3,2460.2,1.32]
[1728790793618,2.64434013,2460.3,2460.1,1.5639]
[1728790793922,2.64434013,2460.3,2460.2,1.32]
[1728790794216,2.11567708,2460.3,2460.2,1.61873151]
[1728790796421,2.11567708,2460.3,2460.2,2.68558731]
[1728790796919,2.11567708,2460.3,2460.2,1.61873319]
[1728790797612,2.11567708,2460.3,2460.2,1.32]
[1728790798423,2.11567708,2460.3,2460.1,1.06685412]
[1728790798424,7.50047708,2460.3,2460.1,1.06685412]
[1728790798716,1.01637,2460.1,2459.6,1.06685412]
[1728790798917,1.32,2459.7,2459.6,1.32]
[1728790799121,9.72264235,2459.7,2459.6,1.32]
[1728790799314,6.9434,2459.7,2459.6,1.32]
[1728790799818,6.9434,2459.7,2459.5,1.32]
[1728790800026,6.9434,2459.7,2459.4,0.7892]
[1728790800027,2.85390154,2459.6,2459.4,0.7892]
[1728790800328,2.85390154,2459.6,2459.5,1.32]
[1728790801322,2.32476719,2459.6,2459.5,1.32]
[1728790802025,4.43836873,2459.6,2459.5,1.32]
[1728790802218,2.85390154,2459.6,2459.5,1.32]
[1728790803330,0.7403,2459.6,2459.5,1.32]
[1728790803724,1.14693,2459.6,2459.5,1.32]
[1728790803925,3.26053154,2459.6,2459.5,1.32]
[1728790804130,0.7403,2459.6,2459.5,1.32]
[1728790805023,2.32305161,2459.6,2459.5,1.32]
[1728790805727,1.05492717,2459.6,2459.5,1.32]
[1728790809028,0.7846,2459.7,2459.5,1.32]
[1728790809229,0.7846,2459.7,2459.6,1.32]
[1728790809825,3.9924,2459.7,2459.6,1.32]
[1728790812230,0.7846,2459.7,2459.6,1.32]
[1728790812528,3.9924,2459.7,2459.6,1.32]
[1728790814932,4.39901,2459.7,2459.6,1.32]
[1728790815233,5.18611,2459.7,2459.6,1.32]
[1728790815434,4.7795,2459.7,2459.6,1.32]
[1728790816736,3.9924,2459.7,2459.6,1.32]
[1728790818634,0.7846,2459.7,2459.6,1.32]
[1728790818829,3.9924,2459.7,2459.6,1.32]
[1728790820028,0.7846,2459.7,2459.6,1.32]
[1728790820227,3.9924,2459.7,2459.6,1.32]
[1728790823337,5.3124,2459.7,2459.4,0.7892]
[1728790823539,0.40664,2459.5,2459.4,2.1092]
[1728790823735,0.40664,2459.5,2459.4,1.32]
[1728790823931,1.20794,2459.5,2459.4,1.32]
[1728790824634,0.40666,2459.4,2459.2,0.7623]
[1728790824833,1.19056,2459.4,2459.3,1.32]
[1728790826336,0.7839,2459.4,2459.3,1.32]
[1728790837741,4.26272717,2459.6,2459.3,5.79306]
[1728790837945,4.26272717,2459.6,2459.5,1.32]
[1728790837946,3.2078,2459.6,2459.5,1.32]
[1728790839152,3.2078,2459.6,2459.5,2.9484]
[1728790839442,4.26272717,2459.6,2459.5,2.9484]
[1728790840452,4.26272717,2459.6,2459.5,7.014]
[1728790840644,4.26272717,2459.6,2459.5,7.42064]
[1728790841352,1.05492717,2459.7,2459.5,7.014]
[1728790841540,1.05492717,2459.7,2459.6,2.50323]
[1728790841946,1.05492717,2459.7,2459.6,6.56883]
[1728790843238,1.58275161,2459.7,2459.6,6.56883]
[1728790845750,1.58275161,2459.7,2459.6,0.7766]
[1728790845954,4.21620154,2459.7,2459.6,2.0966]
[1728790846951,2.50921,2459.7,2459.6,2.0966]
[1728790847454,0.40663,2459.6,2459.3,1.06685412]
[1728790847658,1.05689124,2459.4,2459.3,2.65155412]
[1728790848256,1.05689124,2459.4,2459.3,3.97155412]
[1728790849154,1.58533686,2459.4,2459.3,2.9047]
[1728790849747,1.58533686,2459.4,2459.2,3.13205412]
[1728790849953,1.8680277,2459.3,2459.2,1.81205412]
[1728790850158,1.8680277,2459.3,2459.2,3.43028659]
[1728790850545,1.8680277,2459.3,2459.2,3.43028041]
[1728790852950,1.8680277,2459.3,2459.2,3.43027043]
[1728790855754,1.0568277,2459.3,2459.2,3.43027043]
[1728790856264,1.0568277,2459.3,2459.2,3.13205412]
[1728790858359,1.0568277,2459.3,2459.2,7.19845412]
[1728790859259,1.0568277,2459.3,2459.2,8.37661308]
[1728790860366,1.0568277,2459.3,2459.2,8.67481849]
[1728790860962,1.0568277,2459.3,2459.2,8.67482578]
[1728790861559,1.0568277,2459.4,2459.2,9.68582073]
[1728790861759,1.0568277,2459.4,2459.3,2.6846815]
[1728790862365,1.0568277,2459.4,2459.3,1.61820392]
[1728790862366,1.58533686,2459.4,2459.3,1.61820392]
[1728790868163,1.58533686,2459.4,2459.3,1.32]
[1728790868364,1.58533686,2459.4,2459.3,1.61822642]
[1728790869466,1.58533686,2459.4,2459.3,2.684704]
[1728790870270,1.05693049,2459.4,2459.3,2.684704]
[1728790871572,1.05693049,2459.4,2459.3,2.68472572]
[1728790872171,1.05693049,2459.4,2459.3,7.15780572]
[1728790872464,1.05693049,2459.5,2459.4,0.40666]
[1728790872671,1.05693049,2459.5,2459.4,5.02861282]
[1728790872970,1.05693049,2459.5,2459.4,5.85011282]
[1728790873173,1.05693049,2459.5,2459.4,5.44345282]
[1728790873378,1.05693049,2459.5,2459.4,5.44338766]
[1728790873970,1.05693049,2459.5,2459.4,5.85004766]
[1728790874572,1.05693049,2459.5,2459.4,5.85002082]
[1728790875884,1.05693049,2459.5,2459.4,4.78345046]
[1728790876380,1.58533686,2459.5,2459.4,4.67169479]
[1728790877479,1.58533686,2459.6,2459.4,4.67169479]
[1728790877675,2.11378249,2459.7,2459.4,3.05344665]
[1728790877676,1.58533686,2459.5,2459.4,3.05344665]
[1728790877877,1.58533686,2459.5,2459.4,3.35166547]
[1728790878278,1.58533686,2459.6,2459.4,3.35166547]
[1728790878478,1.58533686,2459.5,2459.4,3.05344665]
[1728790878776,1.05690553,2459.5,2459.4,3.05344665]
[1728790878981,1.05690553,2459.5,2459.4,3.35166868]
[1728790879178,1.58533686,2459.5,2459.4,2.28518203]
[1728790879682,1.58533686,2459.5,2459.4,3.35166868]
[1728790880078,1.58533686,2459.5,2459.4,4.67166868]
[1728790882683,1.58533686,2459.5,2459.4,3.60518203]
[1728790883384,1.58533686,2459.5,2459.4,4.26500868]
[1728790883587,1.58533686,2459.5,2459.4,3.19852203]
[1728790883788,1.58533686,2459.5,2459.4,4.26500868]
[1728790883981,1.58533686,2459.6,2459.4,4.74222901]
[1728790884183,1.58533686,2459.5,2459.4,2.64678665]
[1728790884386,1.05692057,2459.5,2459.4,4.12319759]
[1728790884776,1.05692057,2459.5,2459.4,4.12318088]
[1728790884979,1.05692057,2459.5,2459.4,2.94502189]
[1728790885380,1.05692057,2459.5,2459.4,4.12322719]
[1728790885582,1.05692057,2459.5,2459.4,4.12320988]
[1728790885777,1.05692057,2459.5,2459.4,4.12316007]
[1728790886178,1.05692057,2459.5,2459.4,3.05669073]
[1728790886383,1.05692057,2459.5,2459.4,4.12313354]
[1728790886892,1.05692057,2459.5,2459.4,2.94497805]
[1728790887100,1.05692057,2459.5,2459.4,4.1231346]
[1728790887294,1.05692057,2459.5,2459.4,2.94497805]
[1728790887499,1.05692057,2459.5,2459.4,4.26497805]
[1728790887886,1.05692057,2459.5,2459.4,5.4431736]
[1728790888286,1.05692057,2459.5,2459.4,6.45463841]
[1728790888494,1.05692057,2459.5,2459.4,5.44320133]
[1728790888694,1.05692057,2459.5,2459.4,5.27645877]
[1728790888885,1.05692057,2459.5,2459.4,5.44319665]
[1728790889290,1.05692057,2459.5,2459.4,5.4432419]
[1728790889493,1.05692057,2459.5,2459.4,6.45469751]
[1728790890288,1.05692057,2459.5,2459.4,6.15647915]
[1728790890490,1.05692057,2459.5,2459.4,6.45474558]
[1728790890794,1.05692057,2459.5,2459.4,9.66254558]
[1728790891490,1.05692057,2459.5,2459.4,9.12845071]
[1728790893191,1.83812057,2459.5,2459.4,9.12845071]
[1728790894187,1.83812057,2459.5,2459.4,8.35292351]
[1728790894392,1.83812057,2459.5,2459.4,9.1284324]
[1728790894606,1.83812057,2459.5,2459.4,7.95020068]
[1728790894996,1.83812057,2459.5,2459.4,9.12845514]
[1728790895498,1.83812057,2459.5,2459.4,7.95020068]
[1728790895693,1.83812057,2459.5,2459.4,7.47295118]
[1728790897100,1.83812057,2459.5,2459.4,8.65121953]
[1728790898094,1.83812057,2459.5,2459.4,7.47296265]
[1728790898296,1.83812057,2459.5,2459.4,8.65125507]
[1728790899496,1.83812057,2459.5,2459.4,9.18534994]
[1728790901709,1.83812057,2459.5,2459.4,8.88707908]
[1728790902200,1.83812057,2459.5,2459.4,9.18537527]
[1728790902399,1.83812057,2459.5,2459.4,5.97757527]
[1728790902806,1.83812057,2459.5,2459.4,9.6626849]
[1728790903205,1.83812057,2459.5,2459.4,9.66286084]
[1728790904003,1.83812057,2459.5,2459.4,9.78999261]
[1728790905509,1.83812057,2459.5,2459.4,9.79009439]
[1728790906611,2.36653686,2459.5,2459.4,9.79009439]
[1728790907916,2.36653686,2459.5,2459.4,9.79029104]
[1728790909314,2.36653686,2459.5,2459.4,9.66322586]
[1728790909508,2.36653686,2459.5,2459.4,9.79035756]
[1728790910718,0.7812,2459.5,2459.4,4.74308609]
[1728790911023,0.7812,2459.5,2459.4,4.26567332]
[1728790911224,0.7812,2459.5,2459.4,4.74317909]
[1728790911424,2.3677102,2459.5,2459.4,4.74317909]
[1728790911620,2.3677102,2459.5,2459.4,5.92207848]
[1728790911823,2.3677102,2459.5,2459.4,4.74317909]
[1728790912328,2.3677102,2459.5,2459.4,5.9220743]
[1728790912827,2.3677102,2459.5,2459.4,5.92214521]
[1728790913222,0.7812,2459.5,2459.4,5.14627802]
[1728790913427,2.36788047,2459.5,2459.4,5.9222689]
[1728790913929,2.36788047,2459.5,2459.4,5.92234564]
[1728790914330,0.7812,2459.5,2459.4,6.04948499]
[1728790914627,2.36802579,2459.5,2459.4,4.98247309]
[1728790914830,2.36802579,2459.5,2459.4,6.58315975]
[1728790917323,2.36802579,2459.5,2459.4,6.58339218]
[1728790917525,2.36802579,2459.5,2459.4,5.68002952]
[1728790918932,2.36802579,2459.5,2459.4,6.58346509]
[1728790920729,0.7812,2459.5,2459.4,3.68316509]
[1728790920936,4.50348249,2459.5,2459.4,2.6862935]
[1728790921128,2.79634,2459.5,2459.4,1.32]
[1728790921526,4.91242144,2459.5,2459.4,1.32]
[1728790921727,7.13364623,2459.5,2459.4,1.32]
[1728790923340,2.79634,2459.5,2459.4,1.32]
[1728790926730,4.9107359,2459.5,2459.4,1.32]
[1728790929730,4.5040959,2459.5,2459.4,1.32]
[1728790930035,2.3897,2459.5,2459.4,1.32]
[1728790930233,4.50366586,2459.5,2459.4,1.32]
[1728790930637,2.3897,2459.5,2459.4,1.32]
[1728790931546,13.7753,2459.5,2459.1,1.06771793]
[1728790931743,5.32138491,2459.2,2459.0,1.32]
[1728790932035,5.32138491,2459.2,2458.8,5.04911793]
[1728790932036,5.79366718,2459.1,2458.7,1.06771793]
[1728790932242,4.79287009,2458.9,2458.5,3.80441793]
[1728790932542,1.05625262,2458.7,2458.6,0.29812688]
[1728790933136,1.05625262,2458.7,2458.6,1.61812688]
[1728790933342,1.84705262,2458.8,2458.6,1.32]
[1728790933643,1.84705262,2458.8,2458.7,1.32]